[Event "Prague Open 2025"]
[Site "Prague"]
[Date "2025.01.14"]
[Round "6.5"]
[White "Marek, Matyas"]
[Black "Diachek, Andrii"]
[Result "1/2-1/2"]
[Annotator "TA"]
[ECO "D04"]
[WhiteElo "2314"]
[BlackElo "2104"]
[PlyCount "68"]
[EventDate "2025.01.07"]
[EventType "swiss"]
[EventCountry "CZE"]
[SourceTitle "playchess.com"]
[Source "ChessBase"]
[SourceQuality "1"]
[TimeControl "40/5400+30:1800+30"]

{[%evp 10,68,3,-12,-3,-5,-14,-41,-2,-15,-17,-27,-17,-15,0,-48,-39,-16,-1,-4,-23,-14,-21,-9,-14,-22,-24,-30,-30,-55,-40,-30,-34,-316,-323,-316,-327,-326,-76,-74,-75,-77,-73,-108,-85,-91,-55,-53,-46,-55,-35,-45,-38,-45,-45,-42,0,-16,0,-37,0]} 1. Nf3 {[%emt 0:00:19]} d5 {[%emt 0:00:11]} 2. d4 {[%emt 0:01:29]} Nf6 {[%emt 0:00:07]} 3. e3 {[%emt 0:00:07]} c5 {[%emt 0:01:16]} 4. b3 {[%emt 0:01:06]} Nc6 {[%emt 0:01:19]} 5. Bb2 {[%emt 0:00:28]} Bg4 {[%emt 0:00:46]} 6. Nbd2 {[%emt 0:01:13]} e6 {[%emt 0:01:15]} 7. h3 {[%emt 0:01:53]} Bh5 {[%emt 0:00:31]} 8. Bb5 {[%emt 0:03:19]} Qb6 {[%emt 0:04:57]} 9. Bxc6+ {[%emt 0:02:57]} Qxc6 {[%emt 0:00:22]} 10. g4 {[%emt 0:02:02]} Bg6 {[%emt 0:00:23]} 11. Ne5 {[%emt 0:00:07]} Qc7 {[%emt 0:03:09]} 12. Rc1 {[%emt 0:11:32]} (12. c4 $11) 12... cxd4 $1 $15 {[%emt 0:09:33]} 13. exd4 {[%emt 0:00:37]} Bb4 {[%emt 0:05:26]} 14. c3 {[%emt 0:05:39]} Bd6 {[%emt 0:01:11]} 15. c4 {[%emt 0:03:29]} dxc4 {[%emt 0:04:26]} 16. O-O {[%emt 0:04:21] [#]} c3 $1 {[%emt 0:19:43]} 17. Rxc3 {[%emt 0:07:37]} Qd8 {[%emt 0:01:02]} 18. Qe2 {[%emt 0:13:25]} O-O {[%emt 0:03:45]} 19. Rg3 {[%emt 0:03:19]} Rc8 {[%emt 0:12:21]} 20. Ndc4 {[%emt 0:03:05]} b5 $36 {[%emt 0:07:24][%mdl 2048] Black has the initiative.} 21. Ne3 $2 {[%emt 0:04:34][%mdl 8192]} ({White should play} 21. Nxd6 $15 Qxd6 22. Nxg6 hxg6 23. g5) 21... Bxe5 $19 {[%emt 0:04:12]} 22. dxe5 {[%emt 0:00:32]} Ne4 {[%emt 0:02:13]} 23. Rg2 {[%emt 0:04:17][%cal Of2f4]} Nc3 $2 {[%emt 0:01:21]} (23... Ng5 $19 {and Black stays clearly on top.} 24. Rg3 Bd3) 24. Bxc3 $17 {[%emt 0:01:14]} Rxc3 {[%emt 0:00:05]} 25. Rd1 {[%emt 0:00:17]} Rd3 {[%emt 0:00:11]} 26. Rg3 {[%emt 0:12:02]} Rxd1+ {[%emt 0:02:02]} 27. Nxd1 {[%emt 0:01:27]} Qd4 {[%emt 0:00:50] Inhibits Nc3.} 28. Nc3 $1 {[%emt 0:02:30]} a6 {[%emt 0:01:52] Threatens to win with ...b4.} 29. a3 {[%emt 0:00:54]} Rd8 {[%emt 0:02:15]} 30. b4 {[%emt 0:01:08]} h6 {[%emt 0:02:35]} 31. Re3 {[%emt 0:00:36]} Bd3 32. Qd2 {[%emt 0:00:18]} Bg6 {[%emt 0:04:09]} 33. Qe2 {[%emt 0:00:11]} Bd3 {[%emt 0:00:14]} 34. Qd2 {[%emt 0:00:05]} Bg6 {[%emt 0:00:05]} 1/2-1/2

[Event "Prague Open 2025"]
[Site "Prague"]
[Date "2025.01.14"]
[Round "6.6"]
[White "Mannion, Stephen R"]
[Black "Kulhanek, Tomas"]
[Result "0-1"]
[Annotator "TA"]
[ECO "B76"]
[WhiteElo "2159"]
[BlackElo "2313"]
[PlyCount "100"]
[EventDate "2025.01.07"]
[EventType "swiss"]
[EventCountry "CZE"]
[SourceTitle "playchess.com"]
[Source "ChessBase"]
[SourceQuality "1"]
[TimeControl "40/5400+30:1800+30"]

{[%evp 28,100,39,44,36,16,51,37,40,44,52,-47,-27,-46,-48,-19,104,108,100,-107,0,-49,0,-86,-93,-89,-85,-143,-123,-115,-89,-68,-72,-115,-124,-122,-129,-176,-88,-132,-137,-162,-95,-111,-116,-154,-125,-237,-234,-222,-129,-136,-133,-318,-331,-301,-287,-568,-589,-720,-713,-897,-817,-904,-910,-908,-879,-746,-748,-5047,-1848,-29958,-29961,-4952,-4627]} 1. e4 {[%emt 0:00:02]} c5 {[%emt 0:01:21]} 2. Nf3 {[%emt 0:00:05]} d6 {[%emt 0:00:08]} 3. d4 {[%emt 0:00:05]} cxd4 {[%emt 0:00:05]} 4. Nxd4 {[%emt 0:00:03]} Nf6 {[%emt 0:00:08]} 5. Nc3 {[%emt 0:00:05]} g6 {[%emt 0:00:12]} 6. Be3 {[%emt 0:00:12]} Bg7 {[%emt 0:00:13]} 7. f3 {[%emt 0:00:06]} O-O {[%emt 0:00:06]} 8. Qd2 {[%emt 0:00:05]} Nc6 {[%emt 0:00:04]} 9. O-O-O {[%emt 0:00:07]} d5 {[%emt 0:00:48]} 10. exd5 {[%emt 0:00:11]} Nxd5 {[%emt 0:00:12]} 11. Nxc6 {[%emt 0:00:07]} bxc6 {[%emt 0:00:04]} 12. Bd4 {[%emt 0:00:06]} e5 {[%emt 0:00:32]} 13. Bc5 {[%emt 0:00:09]} Re8 {[%emt 0:00:15]} 14. Bc4 {[%emt 0:05:46]} Be6 {[%emt 0:00:40]} 15. Ne4 {[%emt 0:00:12]} Qc7 {[%emt 0:00:20]} 16. h4 {[%emt 0:00:10] aiming for h5.} Nf4 {[%emt 0:11:34]} (16... Red8 {is interesting.} 17. h5 Nf4 18. Bd6 Qc8) 17. Bxe6 {[%emt 0:13:46]} Nxe6 {[%emt 0:00:16]} 18. Bd6 {[%emt 0:00:24]} Qb6 {[%emt 0:01:47]} 19. h5 {[%emt 0:00:28]} (19. g4 $1 $14) 19... f5 $15 {[%emt 0:04:24]} 20. h6 {[%emt 0:03:13]} Bh8 $1 {[%emt 0:01:32]} 21. Nc3 $1 {[%emt 0:00:24] [#]} e4 {[%emt 0:27:32]} 22. fxe4 $16 {[%emt 0:31:04]} fxe4 {[%emt 0:01:50]} 23. Rh3 $2 {[%emt 0:03:18]} (23. Rhe1 $16 {keeps the pressure on.}) 23... Nd4 {[%emt 0:11:17]} (23... Rad8 $1 $17 24. Qe2 (24. Nxe4 $2 Qxb2#) 24... Bd4) 24. Re1 {[%emt 0:13:22]} (24. Bf4 $11 {should be considered.}) 24... Nf5 {[%emt 0:10:00]} (24... Rad8 $1 $15 25. Rxe4 (25. Nxe4 $2 Nf3 $17) 25... Rxe4 26. Nxe4 Be5 (26... Nf5 27. c3 $17)) 25. Qf4 {[%emt 0:10:20]} (25. Ba3 $11 e3 26. Qe2) 25... Nxd6 $1 $17 {[%emt 0:12:08]} 26. Qxd6 {[%emt 0:00:06]} Rab8 {[%emt 0:01:17]} 27. b3 {[%emt 0:01:57]} (27. Qa3 $142) 27... Rbd8 {[%emt 0:01:41]} 28. Qf4 {[%emt 0:06:16]} Qa5 {[%emt 0:01:50]} 29. Kb2 {[%emt 0:00:36]} Be5 $40 {[%emt 0:02:27][%mdl 128] Black is out for blood. The board is on fire.} (29... Qf5 {simplifies} 30. Qxf5 gxf5 31. Kc1 Be5) 30. Qg4 {[%emt 0:00:26]} Rd4 $1 {[%emt 0:05:19][%cal Oe4e3] Black is more active.} 31. Ree3 {[%emt 0:02:24][%cal Oa2a3]} Bf6 $1 {[%emt 0:02:58]} 32. Rh1 {[%emt 0:06:35]} (32. a3 $17) 32... Qf5 {[%emt 0:01:57]} (32... Rd6 $19 33. Rd1 Bxc3+ 34. Rxc3 Rxd1 35. Qxd1 e3) 33. Qxf5 {[%emt 0:02:17]} gxf5 {[%emt 0:00:02]} 34. Rf1 {[%emt 0:00:04]} Re5 {[%emt 0:01:29]} ({Black should play} 34... Rd6 $1 $19 35. Rxf5 Bd4 36. Rg5+ (36. Rg3+ $2 Rg6 $19) 36... Kf7) 35. Kb1 {[%emt 0:00:48]} Kf7 {[%emt 0:00:19]} 36. Ne2 {[%emt 0:00:57]} Rd8 {[%emt 0:00:36]} 37. c4 {[%emt 0:00:26]} (37. g4 $17) 37... Bg5 {[%emt 0:00:25]} 38. Rg3 {[%emt 0:00:17] [#]} Bxh6 {[%emt 0:00:24]} (38... Kf6 $1 $19 {[%cal Od8d2] ...Rd2! is the strong threat.} 39. Rc3 e3 (39... Bxh6 $2 40. Rh3 $19)) 39. Rh3 {[%emt 0:00:24]} Kg7 {[%emt 0:00:41]} 40. Rh5 $2 {[%emt 0:01:15] [#] Wards off Bg5} (40. Rfh1 $17 Bg5 41. Rxh7+ Kf6 42. Rc7) 40... Kg6 $1 $19 {[%emt 0:00:53]} 41. Rfh1 {[%emt 0:02:27]} Bg5 {[%emt 0:01:50]} ({Weaker is} 41... Rd1+ 42. Rxd1 Kxh5 43. Rd7 $19) 42. Rxh7 $2 {[%emt 0:00:35]} (42. g3 {might work better.} Rd1+ 43. Rxd1 Kxh5 44. Rd7) 42... Rd2 {[%emt 0:01:47]} 43. Nc3 {[%emt 0:00:57]} e3 {[%emt 0:07:40]} 44. Rxa7 {[%emt 0:01:07]} e2 {[%emt 0:00:48]} 45. Re1 {[%emt 0:00:09]} Bh4 {[%emt 0:00:15]} 46. Rxe2 {[%emt 0:00:26]} Rexe2 {[%emt 0:00:14]} 47. Nxe2 {[%emt 0:00:04]} Rxe2 {[%emt 0:00:05]} 48. Rc7 {[%emt 0:00:47]} Rxg2 {[%emt 0:00:30]} (48... f4 $142 49. Rxc6+ Bf6) 49. Rxc6+ {[%emt 0:00:05]} Bf6 {[%emt 0:00:16]} 50. Rc8 {[%emt 0:02:16]} f4 {[%emt 0:01:45]} 0-1

[Event "Prague Open 2025"]
[Site "Prague"]
[Date "2025.01.14"]
[Round "6.7"]
[White "Vardanyan, Aras"]
[Black "Bezeyko, Olexander"]
[Result "1-0"]
[Annotator "TA"]
[ECO "E08"]
[WhiteElo "2312"]
[BlackElo "2050"]
[PlyCount "81"]
[EventDate "2025.01.07"]
[EventType "swiss"]
[EventCountry "CZE"]
[SourceTitle "playchess.com"]
[Source "ChessBase"]
[SourceQuality "1"]
[TimeControl "40/5400+30:1800+30"]

{[%evp 12,81,22,15,28,28,20,0,54,60,54,47,68,43,45,52,33,9,6,7,35,39,56,10,14,4,30,19,16,22,45,53,193,190,266,277,283,283,621,597,601,597,591,593,814,808,783,749,1227,1213,1450,1432,29985,29986,29987,29988,29988,29987,29987,29988,29987,0,29987,29988,29993,29994,29994,29995,29995,29996,29996,29997]} 1. d4 {[%emt 0:00:03]} d5 {[%emt 0:00:07]} 2. c4 {[%emt 0:00:06]} e6 {[%emt 0:00:04]} 3. Nf3 {[%emt 0:00:04]} Nf6 {[%emt 0:00:05]} 4. g3 {[%emt 0:00:05]} Be7 {[%emt 0:00:27]} 5. Bg2 {[%emt 0:00:06]} O-O {[%emt 0:00:15]} 6. O-O {[%emt 0:00:06]} Nbd7 {[%emt 0:00:03]} 7. Qc2 {[%emt 0:02:26]} a5 {[%emt 0:00:42]} 8. h4 {[%emt 0:02:41]} h6 {[%emt 0:10:26]} 9. a3 {[%emt 0:07:40]} b6 {[%emt 0:08:50]} (9... c6 $11) 10. cxd5 $1 $14 {[%emt 0:05:21]} Nxd5 {[%emt 0:01:09]} 11. e4 {[%emt 0:01:28]} N5f6 {[%emt 0:00:09]} 12. Bf4 {[%emt 0:02:06]} c5 {[%emt 0:03:07]} 13. Nc3 {[%emt 0:02:24]} Bb7 {[%emt 0:02:06]} 14. Rad1 {[%emt 0:04:19][%cal Ba1d1,Bd1d4,Bd4d7,Bd7a7][%mdl 32]} cxd4 {[%emt 0:03:19]} 15. Rxd4 {[%emt 0:00:05]} Rc8 {[%emt 0:04:44]} 16. Ne5 {[%emt 0:07:55]} Qe8 $1 {[%emt 0:09:03]} 17. Nxd7 {[%emt 0:08:18]} (17. Rfd1 $14 {might be stronger.} Nxe5 18. Bxe5) 17... Nxd7 $11 {[%emt 0:00:03][%cal Bf6d7,Bd7c5,Bc5b3][%mdl 32]} 18. Rfd1 {[%emt 0:01:03]} Nc5 {[%emt 0:06:21][%cal Oe7h4]} 19. Qe2 {[%emt 0:04:44]} (19. Bd6 {simplifies} Bc6 20. e5 Bxg2 21. Kxg2 Bxd6 22. Rxd6 b5 23. Qe2) 19... Nb3 {[%emt 0:10:43]} 20. Rd7 $36 {[%emt 0:01:24][%mdl 2048] White is pushing.} Bc6 {[%emt 0:01:00]} 21. Ra7 {[%emt 0:05:23]} Bc5 {[%emt 0:03:20]} (21... b5 $14) 22. Qg4 $1 $18 {[%emt 0:05:28]} Kh7 {[%emt 0:01:06]} (22... Rd8 $142 23. Be5 (23. Bxh6 Rxd1+ 24. Nxd1 Bd4 $16) 23... g6 (23... Rxd1+ 24. Qxd1 f6 25. Bd6 $16)) 23. Be5 $1 {[%emt 0:02:04][%csl Ge5][%cal Rg4g7]} Rg8 {[%emt 0:01:48] [#]} 24. Qf4 $1 {[%emt 0:09:13]} Rf8 $2 {[%emt 0:00:47] [#]} (24... f6) 25. Nd5 $1 {[%emt 0:07:28][%mdl 512]} exd5 {[%emt 0:07:19]} 26. Qf5+ {[%emt 0:00:14]} Kg8 {[%emt 0:03:54]} 27. exd5 {[%emt 0:00:13]} Bd4 {[%emt 0:08:45]} 28. Rxd4 {[%emt 0:01:57]} Nxd4 {[%emt 0:00:14]} 29. Bxd4 {[%emt 0:00:10] This pair of bishops is nice.} Qe1+ {[%emt 0:07:43]} 30. Kh2 {[%emt 0:00:31][%cal Og2e4] Be4! is the strong threat.} Bd7 {[%emt 0:03:07]} 31. Rxd7 {[%emt 0:00:19][%cal Og2e4] Threatening mate with Be4!.} Rc1 {[%emt 0:01:06]} 32. h5 {[%emt 0:02:15]} Qg1+ {[%emt 0:01:24]} 33. Kh3 {[%emt 0:00:02]} Qd1 {[%emt 0:00:57] [#]} 34. Be4 $1 {[%emt 0:01:12][%csl Ge4][%cal Rf5h7]} Qf1+ {[%emt 0:02:40]} 35. Kg4 {[%emt 0:00:50][%csl Ge4][%cal Rf5h7]} Qe2+ {[%emt 0:00:29]} 36. Kh3 {[%emt 0:01:42][%csl Ge4][%cal Rf5h7]} Qf1+ {[%emt 0:00:34]} 37. Kh4 {[%emt 0:00:07][%csl Ge4][%cal Rf5h7,Bh3h4,Bh4g4,Bg4f3][%mdl 32]} g5+ {[%emt 0:00:11]} 38. hxg6 {[%emt 0:00:08]} Qh1+ {[%emt 0:00:07]} 39. Bxh1 {[%emt 0:00:08]} Rxh1+ {[%emt 0:00:03]} 40. Kg4 {[%emt 0:00:08]} h5+ {[%emt 0:00:04]} 41. Kf3 {[%emt 0:30:15]} 1-0

[Event "Prague Open 2025"]
[Site "Prague"]
[Date "2025.01.14"]
[Round "6.8"]
[White "Tolmacevs, Artjoms"]
[Black "Verner, Matej"]
[Result "1-0"]
[Annotator "TA"]
[ECO "B32"]
[WhiteElo "2252"]
[BlackElo "1948"]
[PlyCount "61"]
[EventDate "2025.01.07"]
[EventType "swiss"]
[EventCountry "CZE"]
[SourceTitle "playchess.com"]
[Source "ChessBase"]
[SourceQuality "1"]
[TimeControl "40/5400+30:1800+30"]

{[%evp 14,61,38,34,29,32,38,33,33,24,31,12,37,44,43,44,126,129,137,130,189,175,176,177,201,192,243,260,253,249,231,155,257,272,371,331,402,368,542,549,549,542,535,502,1577,1350,1078,974,1323,513]} 1. e4 {[%emt 0:00:00]} c5 {[%emt 0:00:02]} 2. Nf3 {[%emt 0:00:06][%cal Bg1f3,Bf3d4,Bd4b5,Bb5a3,Ba3c4][%mdl 32]} Nc6 {[%emt 0:00:01]} 3. d4 {[%emt 0:00:10]} cxd4 {[%emt 0:00:01]} 4. Nxd4 {[%emt 0:00:09]} e5 {[%emt 0:00:02]} 5. Nb5 {[%emt 0:00:09]} d6 {[%emt 0:00:01]} 6. N1c3 {[%emt 0:00:16]} a6 {[%emt 0:00:01]} 7. Na3 {[%emt 0:00:09]} Be7 {[%emt 0:00:04]} 8. Nc4 {[%emt 0:06:58]} b5 {[%emt 0:00:05]} 9. Ne3 {[%emt 0:00:13]} Nf6 {[%emt 0:00:05]} 10. Bd3 {[%emt 0:11:00]} Nb4 {[%emt 0:03:29]} 11. O-O {[%emt 0:07:58]} O-O {[%emt 0:03:46]} 12. a4 {[%emt 0:09:26]} Bb7 {[%emt 0:08:30]} 13. axb5 {[%emt 0:07:11]} axb5 {[%emt 0:02:03]} 14. Rxa8 {[%emt 0:00:05]} Qxa8 {[%emt 0:00:02]} ({Better is} 14... Bxa8 $14 15. Bxb5 (15. Nxb5 Nxe4 16. c4 Nf6 $11) 15... Nxe4) 15. Nf5 $16 {[%emt 0:00:19]} (15. Nxb5 $6 g6 $14) (15. Bxb5 Rb8) 15... Qd8 {[%emt 0:24:30]} 16. Bxb5 {[%emt 0:02:54] White is more active.} d5 {[%emt 0:05:09]} (16... Bc8 $16) 17. exd5 $18 {[%emt 0:02:54]} Nbxd5 {[%emt 0:03:47]} 18. Nxd5 {[%emt 0:00:18]} Nxd5 {[%emt 0:00:09]} 19. c4 {[%emt 0:15:39]} Nc7 {[%emt 0:01:29] [#]} (19... Nf6 $142 20. Qxd8 Bxd8) 20. Qg4 $1 $40 {[%emt 0:02:04][%csl Gf5][%cal Rg4g7][%mdl 128] Black is in trouble.} Bf6 {[%emt 0:03:22]} 21. Rd1 {[%emt 0:01:30]} Qa8 {[%emt 0:11:48]} 22. Bd7 {[%emt 0:06:55]} Rd8 {[%emt 0:07:41]} (22... Be4 $16 23. Be3 Bxf5 24. Bxf5 (24. Qxf5 Rb8 $18) 24... g6) 23. Be3 {[%emt 0:04:26]} h5 {[%emt 0:20:40]} 24. Nh6+ {[%emt 0:03:28]} (24. Qxh5 Bxg2 25. Qg4 Bf3 26. Nh6+ Kh8 27. Nxf7+ Kg8 28. Nh6+ Kh8 29. Nf7+ Kg8 30. Nh6+ Kh8 31. Nf7+ $11) 24... Kh7 {[%emt 0:00:10]} 25. Qxh5 {[%emt 0:00:37]} (25. Qf5+ g6 26. Qxf6 Rxd7 $14) 25... gxh6 {[%emt 0:01:42]} (25... g6 {was worth a try.} 26. Qg4 (26. Nxf7+ $2 gxh5 27. Bf5+ Kg8 $19) 26... Kg7) 26. Qxh6+ {[%emt 0:01:24]} Kg8 {[%emt 0:00:01]} 27. Qxf6 {[%emt 0:00:11]} Ne6 {[%emt 0:03:20][%cal Od8d7] Repels Qg5+} 28. Qh4 {[%emt 0:03:44] Black must now prevent Qg3+.} ({Weaker is} 28. Qxe5 Rxd7 29. Re1 (29. Qg3+ Ng7 $11) 29... Qa6 $11) 28... Kf8 {[%emt 0:01:56]} (28... Bc8 $142 29. Qg4+ Kh7) 29. Bh6+ {[%emt 0:02:47]} ({Not} 29. Bb6 Rxd7 30. Qh8+ Ke7 31. Qh4+ Ke8 $11) 29... Kg8 {[%emt 0:00:12]} 30. Qg4+ {[%emt 0:00:21]} Kh7 {[%emt 0:00:35]} 31. Bxe6 {[%emt 0:00:13]} (31. Bg5 $142) 1-0

[Event "Prague Open 2025"]
[Site "Prague"]
[Date "2025.01.14"]
[Round "6.9"]
[White "Musil, Vitezslav"]
[Black "Colijn, Stefan"]
[Result "0-1"]
[Annotator "TA"]
[ECO "A13"]
[WhiteElo "1937"]
[BlackElo "2315"]
[PlyCount "66"]
[EventDate "2025.01.07"]
[EventType "swiss"]
[EventCountry "CZE"]
[SourceTitle "playchess.com"]
[Source "ChessBase"]
[SourceQuality "1"]
[TimeControl "40/5400+30:1800+30"]

{[%evp 9,66,2,109,-21,38,29,60,63,66,57,66,51,63,66,54,44,44,40,49,40,45,47,50,48,35,36,49,50,72,66,67,41,33,39,38,41,35,23,59,50,58,0,5,0,8,0,0,-7,0,0,0,0,0,-35,-12,-712,-696,-931,-646]} 1. Nf3 {[%emt 0:00:01]} d5 {[%emt 0:01:47]} 2. c4 {[%emt 0:00:23]} e6 {[%emt 0:00:45]} 3. g3 {[%emt 0:00:05]} Nf6 {[%emt 0:00:05]} 4. Bg2 {[%emt 0:00:05]} d4 {[%emt 0:00:18]} 5. d3 {[%emt 0:00:17]} Bd6 {[%emt 0:00:44]} (5... c5 $11 {keeps the balance.}) 6. Nbd2 {[%emt 0:00:40]} ({White should play} 6. Nxd4 $16 e5 7. Nb5) 6... c5 {[%emt 0:00:40] [#]} ({Black should play} 6... Nc6 $11) 7. b4 $1 $14 {[%emt 0:06:16]} Nbd7 {[%emt 0:04:49]} (7... Nc6 8. b5) 8. bxc5 {[%emt 0:01:42]} Nxc5 {[%emt 0:00:21]} 9. Nb3 {[%emt 0:00:16]} Nxb3 {[%emt 0:06:38]} 10. axb3 {[%emt 0:00:07][%cal Oe1g1]} O-O {[%emt 0:01:20]} 11. O-O {[%emt 0:07:16]} (11. Nxd4 $2 {too greedy.} Bb4+ 12. Kf1 Qxd4 $19) 11... e5 {[%emt 0:02:18]} 12. Ba3 {[%emt 0:00:13]} Re8 {[%emt 0:01:05]} 13. Nd2 {[%emt 0:04:49]} a6 {[%emt 0:08:36]} 14. Bxd6 {[%emt 0:07:20]} Qxd6 {[%emt 0:00:03]} 15. Ne4 {[%emt 0:00:12]} Nxe4 {[%emt 0:00:24]} 16. Bxe4 {[%emt 0:00:04]} Rb8 {[%emt 0:01:16]} 17. Qd2 {[%emt 0:01:51]} Bd7 {[%emt 0:20:40]} 18. Ra5 {[%emt 0:08:05]} Bc6 {[%emt 0:03:45]} 19. Bxc6 {[%emt 0:00:57]} Qxc6 {[%emt 0:00:07]} 20. Rd5 {[%emt 0:03:58]} Rbd8 {[%emt 0:00:59]} 21. Rxd8 {[%emt 0:00:55]} Rxd8 {[%emt 0:00:03][%mdl 4096] Endgame KQR-KQR} 22. Ra1 {[%emt 0:05:20]} h6 {[%emt 0:12:27]} 23. Ra5 {[%emt 0:03:59]} b5 {[%emt 0:04:28]} 24. Qa2 {[%emt 0:00:55]} Rd6 {[%emt 0:01:16]} 25. cxb5 {[%emt 0:02:57]} (25. b4 $14) 25... axb5 $11 {[%emt 0:00:18]} 26. b4 {[%emt 0:00:07]} e4 {[%emt 0:07:32]} 27. Ra7 {[%emt 0:01:17]} Re6 {[%emt 0:01:47] and ...exd3 would now be decisive} 28. Ra8+ {[%emt 0:04:37]} Kh7 {[%emt 0:00:17]} 29. dxe4 $1 {[%emt 0:01:04]} Qxe4 {[%emt 0:00:46]} 30. Rd8 {[%emt 0:00:30]} Rc6 $40 {[%emt 0:01:07][%cal Rc6c1][%mdl 128] Black mounts an attack.} 31. f3 {[%emt 0:02:13]} Qe7 {[%emt 0:02:53][%csl LRb4,LRd8]} 32. Qb1+ $2 {[%emt 0:01:06][%mdl 8192]} (32. Qd5 $11) 32... g6 $19 {[%emt 0:00:09] Active counter play!} 33. Rd5 {[%emt 0:06:34]} Qxe2 {[%emt 0:03:19]} 0-1

[Event "Prague Open 2025"]
[Site "Prague"]
[Date "2025.01.14"]
[Round "6.10"]
[White "Lalic, Bogdan"]
[Black "Salgovic, Simon"]
[Result "1-0"]
[Annotator "TA"]
[ECO "E11"]
[WhiteElo "2321"]
[BlackElo "2102"]
[PlyCount "77"]
[EventDate "2025.01.07"]
[EventType "swiss"]
[EventCountry "CZE"]
[SourceTitle "playchess.com"]
[Source "ChessBase"]
[SourceQuality "1"]
[TimeControl "40/5400+30:1800+30"]

{[%evp 19,77,25,39,15,32,5,7,10,9,8,12,0,0,0,0,0,14,16,23,33,103,96,90,83,74,86,98,90,97,90,134,91,106,117,154,140,141,147,217,198,214,228,217,225,227,221,220,225,352,356,376,364,359,281,281,282,281,223,369,305]} 1. d4 {[%emt 0:00:04]} Nf6 {[%emt 0:03:42]} 2. c4 {[%emt 0:00:13]} e6 {[%emt 0:00:25]} 3. Nf3 {[%emt 0:00:24]} Bb4+ {[%emt 0:00:11]} 4. Bd2 {[%emt 0:00:13]} a5 {[%emt 0:01:28]} 5. g3 {[%emt 0:00:46]} b6 {[%emt 0:01:25]} 6. Bg2 {[%emt 0:00:18]} Bb7 {[%emt 0:00:44]} 7. O-O {[%emt 0:00:25]} Bxd2 {[%emt 0:02:23]} 8. Qxd2 {[%emt 0:00:37]} O-O {[%emt 0:01:37]} 9. Nc3 {[%emt 0:00:14]} Ne4 {[%emt 0:17:43]} 10. Nxe4 {[%emt 0:00:17]} Bxe4 {[%emt 0:00:09]} 11. Qf4 {[%emt 0:00:25]} f5 {[%emt 0:06:13]} 12. Rad1 {[%emt 0:05:01]} d6 {[%emt 0:04:10]} 13. Ng5 {[%emt 0:01:44]} Bxg2 {[%emt 0:00:28]} 14. Kxg2 {[%emt 0:00:07]} Qe7 {[%emt 0:23:05]} 15. d5 {[%emt 0:01:43]} e5 {[%emt 0:00:33]} 16. Qh4 $40 {[%emt 0:00:38][%csl Gg5][%cal Rh4h7][%mdl 128] White has some attack.} h6 {[%emt 0:01:58]} 17. Ne6 {[%emt 0:00:12]} Qxh4 {[%emt 0:17:18]} 18. gxh4 {[%emt 0:00:06]} Rf7 {[%emt 0:00:07]} 19. f4 {[%emt 0:01:09]} e4 {[%emt 0:06:32]} ({Black should try} 19... exf4 $14 20. Rxf4 Na6) 20. Kf2 {[%emt 0:01:21] White has more active pieces. The black rooks are passive.} Na6 {[%emt 0:01:12]} 21. Ke3 {[%emt 0:05:16]} Nc5 {[%emt 0:01:48] [#]} 22. Nd4 $1 {[%emt 0:00:12]} Kh7 {[%emt 0:04:37]} 23. Rg1 {[%emt 0:01:16]} g6 {[%emt 0:03:32][%cal Bg7g6,Bg6g5][%mdl 32]} 24. Rg3 {[%emt 0:03:57]} Rf6 {[%emt 0:00:34]} 25. b3 {[%emt 0:04:23][%cal Oh4h5]} Rg8 {[%emt 0:00:33]} 26. a3 {[%emt 0:00:53][%cal Ba2a3,Ba3b4][%mdl 32]} Ra8 {[%emt 0:00:29] [#]} 27. h5 $1 {[%emt 0:02:50][%mdl 512]} g5 {[%emt 0:00:19]} 28. Rf1 {[%emt 0:00:57]} (28. fxg5 f4+ 29. Kd2 hxg5 30. Rxg5 a4) 28... Rg8 {[%emt 0:00:41] [#]} (28... g4 $16 29. Rfg1 Rf7) 29. b4 $1 $18 {[%emt 0:00:28]} (29. fxg5 $6 hxg5 30. Rxf5 (30. Nxf5 Nxb3 31. Rg4 Nc5 $14) 30... Rxf5 31. Nxf5 Nxb3 $16) 29... axb4 {[%emt 0:00:12]} 30. axb4 {[%emt 0:00:02]} Nd7 {[%emt 0:00:50]} 31. fxg5 {[%emt 0:02:16]} hxg5 {[%emt 0:00:23] White must now prevent ...f4+.} 32. Rxf5 {[%emt 0:00:08]} (32. Nxf5 $6 Ne5) 32... Rxf5 {[%emt 0:00:29]} 33. Nxf5 {[%emt 0:00:06][%mdl 4096] Endgame KRN-KRN. White is a pawn up.} Ne5 {[%emt 0:00:36]} (33... g4 {might work better.} 34. Nd4 (34. Kxe4 Nf6+ 35. Kd4 Rg5 $16) 34... Kh6 35. Kxe4 Rf8) 34. Kd4 {[%emt 0:02:15]} (34. Kxe4 Kh8 35. Ne3 (35. c5 bxc5 36. bxc5 Nf7 $18) 35... Kh7 $18) 34... g4 {[%emt 0:00:21]} 35. Ra3 {[%emt 0:00:34][%cal Oa3a7] Hoping for Ra7!.} ({Inferior is} 35. Kxe4 Rg5 $14) 35... Rf8 {[%emt 0:00:40]} 36. Kxe4 {[%emt 0:00:25]} Nxc4 {[%emt 0:00:32]} 37. Ra7 {[%emt 0:00:10]} Rf7 {[%emt 0:00:14]} 38. Kf4 {[%emt 0:01:26]} Nd2 {[%emt 0:00:46]} (38... Ne3 $142) 39. e4 {[%emt 0:02:39]} 1-0